bitfinex/quotes_ETHUSD_20250630
["timestamp","ask_amount","ask_price","bid_price","bid_amount"]
[1751309754465,4.01640271,2489.8,2489.5,0.9979]
[1751309754934,4.01640271,2489.8,2489.7,0.2008]
[1751309755337,6.02929225,2489.9,2489.7,0.2008]
[1751309755534,6.02924747,2489.9,2489.7,0.2008]
[1751309756969,4.01638685,2489.8,2489.7,0.2008]
[1751309759078,6.02932142,2489.9,2489.7,0.2008]
[1751309759272,4.01638685,2489.8,2489.7,0.2008]
[1751309760646,6.02932547,2489.9,2489.7,0.2008]
[1751309761387,2.013,2489.9,2489.7,0.2008]
[1751309761745,6.02929088,2489.9,2489.7,0.2008]
[1751309762087,6.02929149,2489.9,2489.7,0.2008]
[1751309764272,4.01638685,2489.8,2489.7,0.2008]
[1751309764857,14.01614628,2490.0,2489.7,0.2008]
[1751309765050,13.67898315,2490.1,2489.8,0.8073]
[1751309765362,13.67898315,2490.1,2489.9,0.2008]
[1751309765766,0.01,2490.1,2489.9,0.2008]
[1751309766094,0.01,2490.1,2490.0,4.78786425]
[1751309770884,0.01,2490.1,2490.0,0.7718]
[1751309771275,0.01,2490.1,2489.9,0.70326399]
[1751309772492,0.01,2490.1,2489.9,4.71947493]
[1751309773770,0.01,2490.1,2490.0,4.01606425]
[1751309773954,0.01,2490.1,2490.0,5.35236425]
[1751309774155,0.01,2490.1,2490.0,7.85917208]
[1751309782894,0.01,2490.1,2490.0,3.29310783]
[1751309783192,0.01,2490.1,2490.0,6.556]
[1751309784200,4.02590297,2490.1,2489.9,0.2008]
[1751309784489,0.01,2490.1,2490.0,6.556]
[1751309784990,4.02590297,2490.1,2490.0,6.556]
[1751309785189,4.02590297,2490.1,2489.9,0.2008]
[1751309785190,4.01606425,2490.0,2489.9,0.2008]
[1751309785394,4.90033844,2490.0,2489.9,6.7568]
[1751309785592,4.90033844,2490.0,2489.9,0.2008]
[1751309785910,5.70133844,2490.0,2489.9,0.2008]
[1751309786090,0.801,2489.4,2489.3,6.556]
[1751309786292,4.81803221,2489.4,2489.2,1.2040044]
[1751309786465,4.81803221,2489.4,2489.3,0.2008]
[1751309786882,0.801,2489.4,2489.3,0.2008]
[1751309788717,4.81803221,2489.4,2489.3,0.2008]
[1751309789035,0.801,2489.4,2489.3,0.2008]
[1751309789521,0.88427419,2490.0,2489.3,0.2008]
[1751309789522,4.01680513,2489.6,2489.3,0.2008]
[1751309789686,4.01656852,2489.7,2489.3,4.21790154]
[1751309789888,4.01656852,2489.7,2489.5,0.2008]
[1751309790324,4.01645148,2489.8,2489.5,0.2008]
[1751309790494,4.01670951,2489.6,2489.5,0.2008]
[1751309790682,0.88427419,2490.0,2489.7,0.2008]
[1751309790886,4.79471064,2490.1,2489.8,7.23323469]
[1751309791212,4.016153,2490.0,2489.9,0.2008]
[1751309792103,4.89724248,2490.0,2489.9,0.2008]
[1751309792316,0.7788,2490.1,2489.9,0.2008]
[1751309792487,0.01,2490.1,2489.9,0.2008]
[1751309794120,4.01606425,2490.0,2489.9,0.2008]
[1751309794488,4.02599469,2490.1,2489.9,0.2008]
[1751309794709,0.01,2490.1,2489.9,0.2008]
[1751309794907,4.01606425,2490.0,2489.9,0.2008]
[1751309795109,4.02599806,2490.1,2489.9,0.2008]
[1751309795328,4.01606425,2490.0,2489.9,0.2008]
[1751309795504,4.02597779,2490.1,2489.9,0.2008]
[1751309795706,4.02597779,2490.1,2489.7,6.556]
[1751309795707,4.01633628,2489.9,2489.7,6.56]
[1751309795927,4.01622555,2489.9,2489.8,0.2008]
[1751309796618,4.01622555,2489.9,2489.7,6.56]
[1751309796619,4.01638685,2489.8,2489.7,6.56]
[1751309796927,4.77003082,2489.7,2489.5,0.2008]
[1751309797430,4.01670951,2489.6,2489.5,0.2008]
[1751309798126,4.89538354,2489.6,2489.5,0.2008]
[1751309799227,4.01710895,2489.4,2488.9,1.2040044]
[1751309799433,4.01710895,2489.4,2489.3,0.2008]
[1751309800324,4.77050895,2489.4,2489.3,0.2008]
[1751309800849,14.77050895,2489.4,2489.3,0.2008]
[1751309801017,16.93821645,2489.4,2489.3,0.2008]
[1751309801207,4.01832355,2488.6,2488.4,1.2040044]
[1751309801565,4.01832355,2488.6,2488.1,22.61626836]
[1751309801706,4.01837749,2488.6,2488.5,0.2008]
[1751309802117,4.01885338,2488.3,2488.0,6.581]
[1751309802651,0.9542,2488.7,2488.2,0.2008]
[1751309802818,0.9542,2488.7,2488.6,0.2008]
[1751309802819,0.7534,2488.7,2488.6,0.2008]
[1751309803005,4.77156209,2488.7,2488.6,0.2008]
[1751309803704,0.7534,2488.7,2488.6,0.2008]
[1751309803931,4.77156209,2488.7,2488.6,0.2008]
[1751309805213,4.01846357,2488.6,2488.1,10.60710739]
[1751309805415,4.01846357,2488.6,2488.4,0.2008]
[1751309806344,4.01840033,2488.6,2488.4,0.2008]
[1751309808344,4.01848503,2488.5,2488.4,0.2008]
[1751309810758,1.83354684,2488.7,2488.4,0.2008]
[1751309810759,11.83354684,2488.7,2488.4,0.2008]
[1751309811066,4.01840907,2488.6,2488.4,0.2008]
[1751309811762,0.7534,2488.7,2488.3,4.01880802]
[1751309811966,2.028,2488.9,2488.5,0.2008]
[1751309812138,2.028,2488.9,2488.6,4.01824014]
[1751309812466,2.028,2488.9,2488.8,0.2008]
[1751309813361,6.0458392,2488.9,2488.8,0.2008]
[1751309813534,2.028,2488.9,2488.8,0.2008]
[1751309814836,12.028,2489.2,2488.8,0.2008]
[1751309815058,12.028,2489.2,2489.1,0.2008]
[1751309815257,10.0,2489.2,2489.1,0.2008]
[1751309815462,2.028,2489.4,2489.1,0.2008]
[1751309815645,6.0451095,2489.4,2489.3,0.2008]
[1751309815847,7.13395783,2489.4,2489.3,0.2008]
[1751309818473,6.0451095,2489.4,2489.3,0.2008]
[1751309818675,6.04503221,2489.4,2489.3,0.2008]
[1751309820243,2.028,2489.4,2489.3,0.2008]
[1751309820643,6.04503221,2489.4,2489.3,0.2008]
[1751309821066,2.028,2489.4,2489.3,0.2008]
[1751309827277,6.04503221,2489.4,2489.3,0.2008]
[1751309827577,7.85662537,2489.4,2489.3,0.2008]
[1751309828551,7.85662537,2489.4,2488.7,9.20112874]
[1751309828552,4.01787674,2488.9,2488.7,1.96603978]
[1751309828758,4.0174448,2489.2,2488.7,4.78877169]
[1751309828957,3.83959316,2489.4,2488.8,0.2008]
[1751309829184,4.01752846,2489.1,2489.0,0.2008]
[1751309829386,4.01729476,2489.3,2489.0,0.2008]
[1751309829584,2.8334,2489.4,2488.7,0.7707]
[1751309829585,6.85049416,2489.4,2489.2,0.2008]
[1751309829785,4.01719358,2489.3,2489.2,0.2008]
[1751309830084,4.01711462,2489.4,2489.2,0.2008]
[1751309830382,4.82786931,2489.5,2489.2,0.2008]
[1751309830558,4.01704001,2489.4,2489.2,0.2008]
[1751309830758,4.01704001,2489.4,2489.0,4.01752373]
[1751309830958,4.01704001,2489.4,2489.3,0.2008]
[1751309831158,5.10433094,2489.4,2489.3,0.2008]
[1751309832584,1.08729093,2489.4,2489.3,0.2008]
[1751309832786,4.01703221,2489.4,2489.3,0.2008]
[1751309834990,2.019,2489.6,2489.3,4.21798189]
[1751309835304,2.019,2489.6,2489.3,0.2008]
[1751309835475,2.019,2489.6,2489.5,0.2008]
[1751309835794,2.019,2489.7,2489.5,0.2008]
[1751309835994,0.21,2490.1,2489.5,0.2008]
[1751309836203,0.21,2490.1,2489.8,7.23508896]
[1751309836204,0.01,2490.1,2489.8,7.23508896]
[1751309836502,4.02597951,2490.1,2490.0,0.2]
[1751309836662,0.01,2490.1,2490.0,0.2]
[1751309837063,0.01,2490.1,2490.0,0.9754]
[1751309837260,0.01,2490.1,2490.0,0.2]
[1751309838199,0.01,2490.1,2490.0,4.21606425]
[1751309838362,0.01,2490.1,2490.0,5.76281418]
[1751309838692,0.01,2490.1,2490.0,1.74674993]
[1751309838988,0.01,2490.1,2490.0,5.76281418]
[1751309839492,0.01,2490.1,2490.0,6.59461418]
[1751309840091,4.02590297,2490.1,2490.0,0.2]
[1751309840472,4.01636258,2489.9,2489.5,1.19533978]
[1751309840873,4.01636258,2489.9,2489.8,0.2008]
[1751309841461,4.0161289,2490.0,2489.8,0.2008]
[1751309841887,4.01622555,2489.9,2489.8,0.2008]
[1751309842694,4.01614771,2490.0,2489.8,0.2008]
[1751309843204,4.01622555,2489.9,2489.8,0.2008]
[1751309845508,4.01617434,2490.0,2489.8,0.2008]
[1751309846280,4.01622555,2489.9,2489.8,0.2008]
[1751309846986,5.80565584,2489.9,2489.8,0.2008]
[1751309849486,4.01638685,2489.8,2489.6,0.2008]
[1751309849681,4.01654817,2489.7,2489.6,0.2008]
[1751309853014,0.2008,2489.6,2489.0,1.19533978]
[1751309853319,4.01719358,2489.3,2489.2,0.2008]
[1751309854017,0.2008,2489.6,2489.2,0.2008]
[1751309854222,4.0170939,2489.4,2489.0,4.01759123]
[1751309854519,4.0170939,2489.4,2489.1,0.40175912]
[1751309854710,4.01720061,2489.3,2488.9,4.01774441]
[1751309854906,4.01712809,2489.4,2488.9,4.01774441]
[1751309855101,4.01712809,2489.4,2489.2,0.2008]
[1751309855818,4.01704041,2489.4,2489.2,0.2008]
[1751309856018,4.01693702,2489.5,2489.2,0.2008]
[1751309856222,4.01689554,2489.5,2489.2,1.0273]
[1751309856415,4.01679696,2489.6,2489.4,0.2008]
[1751309857114,4.01687085,2489.5,2489.4,0.2008]
[1751309864709,6.03572976,2489.6,2489.4,0.2008]
[1751309864920,16.03581127,2489.6,2489.5,0.2008]
[1751309866731,12.019,2489.6,2489.5,0.2008]
[1751309867031,4.01662711,2489.7,2489.5,0.2008]
[1751309867230,4.01670951,2489.6,2489.5,0.2008]
[1751309868336,4.01661782,2489.7,2489.5,0.2008]
[1751309868845,2.014,2489.8,2489.6,0.7873]
[1751309869007,6.03038866,2489.8,2489.6,0.7873]
[1751309869209,2.014,2489.8,2489.7,0.2008]
[1751309869918,6.03038685,2489.8,2489.7,0.2008]
[1751309873436,7.11178202,2489.8,2489.7,0.2008]
[1751309873642,4.01709521,2489.4,2489.2,1.97503978]
[1751309873947,4.01709521,2489.4,2489.1,7.75733978]
[1751309874124,4.01709521,2489.4,2489.3,0.2008]
[1751309874535,4.01709521,2489.4,2489.1,1.19533978]
[1751309874536,4.01719358,2489.3,2489.1,1.19533978]
[1751309874744,1.80342888,2489.2,2489.1,0.2008]
[1751309875122,5.82082099,2489.2,2489.1,0.2008]
[1751309876046,4.01739211,2489.2,2489.1,0.2008]
[1751309876547,4.80059211,2489.2,2489.1,0.2008]
[1751309879424,4.0172889,2489.3,2489.1,0.2008]
[1751309879817,6.03105051,2489.4,2489.2,0.2008]
[1751309880017,4.01694896,2489.5,2489.2,0.2008]
[1751309880217,10.0,2489.6,2489.4,0.2008]
[1751309880547,4.01660225,2489.7,2489.5,0.7871]
[1751309880936,4.01660225,2489.7,2489.6,0.2008]
[1751309881136,6.03048088,2489.8,2489.6,0.2008]
[1751309881345,4.01654817,2489.7,2489.6,0.2008]
[1751309881538,4.01639891,2489.8,2489.5,0.7871]
[1751309881741,4.01639891,2489.8,2489.7,0.2008]
[1751309882555,5.02106168,2489.8,2489.7,0.2008]
[1751309886259,4.01639891,2489.8,2489.7,0.2008]
[1751309888855,6.03039891,2489.8,2489.7,0.2008]
[1751309890333,16.03039891,2489.8,2489.7,0.2008]
[1751309891141,4.84443221,2489.4,2489.2,1.19533978]
[1751309891455,4.50150559,2489.4,2489.3,0.2008]
[1751309891655,4.01706237,2489.4,2489.3,0.2008]
[1751309892462,2.014,2489.4,2489.3,0.2008]
[1751309894246,6.03103221,2489.4,2489.3,0.2008]
[1751309895183,2.014,2489.4,2489.3,0.2008]
[1751309895378,6.03103221,2489.4,2489.3,0.2008]
[1751309895947,2.014,2489.4,2489.3,0.2008]
[1751309896357,6.03103221,2489.4,2489.3,0.2008]
[1751309897177,2.014,2489.4,2489.3,0.2008]
[1751309897576,6.03103221,2489.4,2489.3,0.2008]
[1751309899076,7.11349502,2489.4,2489.3,0.2008]
[1751309903348,4.21760088,2489.6,2489.3,0.2008]
[1751309903579,4.01696795,2489.5,2489.4,0.2008]
[1751309903780,16.02973427,2489.6,2489.4,0.2008]
[1751309903961,2.013,2489.6,2489.4,0.2008]
[1751309904294,2.013,2489.6,2489.5,0.2008]
[1751309904456,6.02970951,2489.6,2489.5,0.2008]
[1751309906965,2.013,2489.6,2489.5,0.2008]
[1751309907778,6.02970951,2489.6,2489.5,0.2008]
[1751309908158,2.013,2489.6,2489.5,0.2008]
[1751309909275,2.013,2489.9,2489.7,4.01653793]
[1751309909476,2.013,2489.9,2489.8,0.2008]
[1751309911865,6.02922555,2489.9,2489.8,0.2008]
[1751309912861,7.03475604,2489.9,2489.8,0.2008]
[1751309913061,7.78495604,2489.9,2489.8,0.2008]
[1751309913267,4.01687085,2489.5,2489.4,1.19533978]
[1751309913483,4.01703221,2489.4,2489.3,1.19533978]
[1751309913883,4.01703221,2489.4,2489.3,1.39613978]
[1751309914295,4.82042584,2489.4,2489.3,0.2008]
[1751309915571,4.01744474,2489.2,2488.9,1.98503978]
[1751309916104,4.01744474,2489.2,2489.1,0.2008]
[1751309917314,6.03026537,2489.3,2489.1,0.2008]
[1751309917611,2.013,2489.3,2489.1,0.2008]
[1751309917772,6.03019732,2489.3,2489.1,0.2008]
[1751309917977,2.013,2489.3,2489.1,0.2008]
[1751309918614,6.03019587,2489.3,2489.1,0.2008]
[1751309919435,2.013,2489.3,2489.1,0.2008]
[1751309920139,4.01735497,2489.2,2489.1,0.2008]
[1751309920759,5.10543551,2489.2,2489.1,0.2008]
[1751309920920,4.01767778,2489.0,2488.7,1.19533978]
[1751309921099,4.01784602,2488.9,2488.8,1.19533978]
[1751309921304,4.01784602,2488.9,2488.7,1.19533978]
[1751309921514,4.01784602,2488.9,2488.8,0.2008]
[1751309923071,4.01777372,2489.0,2488.8,0.2008]
[1751309924057,4.0178392,2488.9,2488.8,0.2008]
[1751309924965,4.01777762,2489.0,2488.8,0.2008]
[1751309925728,4.0178392,2488.9,2488.8,0.2008]
[1751309926143,4.01775015,2489.0,2488.8,0.2008]
[1751309926469,4.0178392,2488.9,2488.8,0.2008]
[1751309927464,4.01776529,2489.0,2488.8,0.2008]
[1751309927872,4.0178392,2488.9,2488.8,0.2008]
[1751309929058,4.01773479,2489.0,2488.8,0.2008]
[1751309930442,6.03061048,2489.1,2488.8,0.2008]
[1751309930637,6.03061048,2489.1,2489.0,0.2008]
[1751309931075,6.03051637,2489.1,2489.0,0.2008]
[1751309935190,6.50296038,2489.1,2489.0,0.2008]
[1751309939567,4.01832355,2488.6,2488.5,0.7503]
[1751309940082,4.01832355,2488.6,2488.5,0.9511]
[1751309940781,4.01826469,2488.7,2488.5,0.9511]
[1751309941905,4.01832355,2488.6,2488.5,0.9511]
[1751309942476,4.01824702,2488.7,2488.5,0.9511]
[1751309942702,4.01832355,2488.6,2488.5,0.7503]
[1751309943300,4.01824791,2488.7,2488.5,2.14643978]
[1751309943885,4.01824791,2488.7,2488.5,1.39613978]
[1751309943886,4.01832355,2488.6,2488.5,1.39613978]
[1751309944072,4.01832355,2488.6,2488.5,0.2008]
[1751309944416,4.01824554,2488.7,2488.5,0.2008]
[1751309944996,7.92,2488.9,2488.5,0.2008]
[1751309945310,13.9508392,2488.9,2488.8,0.2008]
[1751309946520,7.92,2488.9,2488.8,0.2008]
[1751309946733,9.933,2488.9,2488.8,0.2008]
[1751309948819,7.92,2488.9,2488.8,4.21880064]
[1751309949008,7.92,2488.9,2488.8,0.2008]
[1751309949422,13.95051974,2489.1,2488.8,0.2008]
[1751309949928,4.0176919,2489.0,2488.7,0.7894]
[1751309950125,4.01785872,2488.9,2488.6,1.19533978]
[1751309950330,4.0176919,2489.0,2488.6,1.19533978]
[1751309950331,4.01800547,2488.8,2488.6,1.19533978]
[1751309950848,4.01800547,2488.8,2488.7,0.2008]
[1751309951334,4.01792434,2488.9,2488.7,0.2008]
[1751309951529,6.03092434,2488.9,2488.7,1.39613978]
[1751309951837,2.013,2488.9,2488.7,1.39613978]
[1751309952159,4.01777734,2489.0,2488.7,1.39613978]
[1751309952315,6.03077734,2489.0,2488.7,1.39613978]
[1751309952637,2.013,2489.0,2488.9,0.978]
[1751309953205,7.92,2489.1,2488.9,0.978]
[1751309953441,2.013,2489.3,2489.0,4.01752311]
[1751309953738,2.013,2489.3,2489.0,4.01767778]
[1751309953926,2.013,2489.3,2489.2,0.2008]
[1751309955712,6.03019358,2489.3,2489.2,0.2008]
[1751309955918,7.79791853,2489.3,2489.2,0.2008]
[1751309957532,4.01767778,2489.0,2488.9,1.20304339]
[1751309957950,4.01767778,2489.0,2488.9,0.2008]
[1751309961272,13.95035419,2489.3,2489.0,0.7737]
[1751309961474,4.01736305,2489.2,2489.0,0.7737]
[1751309961855,4.01736305,2489.2,2489.1,0.2008]
[1751309962879,13.96029193,2489.3,2489.1,0.2008]
[1751309963084,9.943,2489.3,2489.1,0.2008]
[1751309964593,9.943,2489.3,2489.2,0.2008]
[1751309965491,7.93,2489.3,2489.2,4.21815497]
[1751309965690,0.01,2489.3,2489.2,5.0417344]
[1751309967692,0.01,2489.3,2489.2,5.8243344]
[1751309970094,0.01,2489.3,2489.2,7.02657997]
[1751309970466,0.01,2489.3,2489.2,5.8243344]
[1751309970665,0.01,2489.3,2489.2,1.0251344]
[1751309970866,0.01,2489.3,2489.2,5.04248937]
[1751309971296,0.01,2489.3,2489.2,1.0251344]
[1751309971502,0.01,2489.3,2489.2,5.04248937]
[1751309971869,0.01,2489.3,2489.2,0.2425344]
[1751309972270,0.01,2489.3,2489.2,0.2008]
[1751309973611,0.01,2489.3,2489.2,4.21815497]
[1751309974600,0.01,2489.3,2489.2,0.2008]
[1751309974985,0.01,2489.3,2489.2,4.21815497]
[1751309977905,0.01,2489.3,2489.2,0.2008]
[1751309980177,4.02719358,2489.3,2489.2,0.2008]
[1751309980686,0.01,2489.3,2489.2,0.2008]
[1751309981204,4.50974509,2489.3,2489.2,0.2008]
[1751309981977,6.52074509,2489.3,2489.2,0.2008]
[1751309984108,14.44074509,2489.3,2489.2,0.2008]
[1751309984310,4.8032392,2488.9,2488.8,0.02]
[1751309984491,5.28356312,2488.9,2488.8,0.02]
[1751309986582,7.29456312,2488.9,2488.8,0.02]
[1751309986890,7.29456312,2488.9,2488.8,0.2208]
[1751309990414,5.28356312,2488.9,2488.8,0.2208]
[1751309990585,7.29356312,2488.9,2488.8,0.2208]
[1751309993817,2.01,2488.9,2488.8,0.2208]
[1751309994614,4.01759041,2489.1,2488.8,0.2208]
[1751309994931,6.0277039,2489.0,2488.8,0.2208]
[1751309995106,6.0277039,2489.0,2488.8,0.02]
[1751309995307,6.0277039,2489.0,2488.9,0.2008]
[1751309995532,6.02767778,2489.0,2488.9,0.2008]
[1751309996043,2.01,2489.0,2488.9,0.2008]
[1751309996341,6.02767778,2489.0,2488.9,0.2008]
[1751309996717,2.01,2489.0,2488.9,0.2008]
[1751309997037,10.0,2489.2,2488.9,0.2008]
[1751309997208,2.01,2489.1,2488.9,0.2008]
[1751309997533,6.02752856,2489.1,2488.8,0.02]
[1751309997735,6.02752856,2489.1,2489.0,0.2008]
[1751310000303,6.80782856,2489.1,2489.0,0.2008]
[1751310000508,3.57778996,2489.1,2488.8,0.02]
[1751310000842,2.01,2489.0,2488.8,4.03793701]
[1751310001133,2.01,2489.0,2488.8,0.02]
[1751310001539,2.01,2489.0,2488.9,0.2008]
[1751310002243,6.02767778,2489.0,2488.9,0.2008]
[1751310003614,7.11321344,2489.0,2488.9,0.2008]
[1751310004047,4.0178392,2488.9,2488.8,0.02]
[1751310008348,0.8101,2489.1,2488.8,0.02]
[1751310008532,4.0178392,2488.9,2488.8,0.02]
[1751310009054,6.02776741,2489.0,2488.8,0.2208]
[1751310009258,4.0178392,2488.9,2488.8,0.2208]
[1751310009557,6.02774481,2489.0,2488.8,0.2208]
[1751310009856,4.0178392,2488.9,2488.8,0.2208]
[1751310011261,6.02774762,2489.0,2488.8,0.2208]
[1751310011649,6.02772157,2489.0,2488.8,0.2208]
[1751310011968,4.0178392,2488.9,2488.8,0.2208]
[1751310016868,6.02769949,2489.0,2488.8,0.2208]
[1751310017168,4.0178392,2488.9,2488.8,0.2208]
[1751310018070,6.02777097,2489.0,2488.8,0.2208]
[1751310018767,4.0178392,2488.9,2488.8,0.2208]
[1751310019787,22.7224392,2488.9,2488.8,0.02]
[1751310019967,29.4772392,2488.9,2488.8,0.02]
[1751310021777,22.9232392,2488.9,2488.8,0.02]
[1751310021979,31.4862392,2488.9,2488.8,0.02]
[1751310022173,35.49956344,2488.9,2488.8,0.02]
[1751310023248,35.50056344,2488.9,2488.8,0.02]
[1751310024192,26.93656344,2488.9,2488.8,0.02]
[1751310024348,23.9468392,2488.9,2488.8,0.02]
[1751310024658,23.9468392,2488.9,2488.8,0.2208]
[1751310026372,24.7048392,2488.9,2488.8,0.2208]
[1751310026583,17.92,2488.9,2488.8,0.2208]
[1751310026775,23.9468392,2488.9,2488.8,0.2208]
[1751310026977,26.81910045,2488.9,2488.8,0.2208]
[1751310027151,27.57710045,2488.9,2488.8,0.02]
[1751310028186,25.56810045,2488.9,2488.8,0.02]
[1751310028403,23.9468392,2488.9,2488.8,0.02]
[1751310028554,23.9468392,2488.9,2488.8,0.2208]
[1751310030070,21.9378392,2488.9,2488.8,0.2208]
[1751310030278,23.9468392,2488.9,2488.8,0.2208]
[1751310030780,12.7065003,2489.3,2488.8,5.00510064]
[1751310031099,10.01,2489.2,2488.9,4.01781522]
[1751310031453,10.01,2489.2,2489.1,0.2008]
[1751310032116,0.01,2489.2,2489.1,0.2008]
[1751310032322,2.019,2489.2,2489.1,0.2008]
[1751310033294,6.03635497,2489.2,2489.1,0.2008]
[1751310033479,7.83471269,2489.2,2489.1,0.2008]
[1751310033877,3.81735772,2489.2,2489.1,0.2008]
[1751310034079,2.019,2489.2,2489.1,0.2008]
[1751310034830,0.01,2489.2,2489.1,5.02171637]
[1751310035035,0.01,2489.2,2489.1,1.0042]
[1751310035315,0.01,2489.2,2489.1,0.2008]
[1751310035675,4.02735497,2489.2,2489.1,0.2008]
[1751310035992,5.70598348,2489.2,2489.1,0.2008]
[1751310036188,4.01760361,2489.1,2488.8,1.22224557]
[1751310036510,4.01760361,2489.1,2489.0,0.2008]
[1751310036817,0.01,2489.2,2489.0,1.006]
[1751310037313,0.01,2489.2,2489.1,0.2008]
[1751310037781,2.019,2489.2,2489.1,0.2008]
[1751310038799,2.019,2489.2,2489.1,4.21831637]
[1751310039521,0.01,2489.2,2489.1,4.21831637]
[1751310039819,0.01,2489.2,2489.1,5.12243509]
[1751310041225,0.01,2489.2,2489.1,6.45103509]
[1751310044990,0.01,2489.2,2489.1,7.65328066]
[1751310046432,0.01,2489.2,2489.1,6.45103509]
[1751310050141,0.01,2489.2,2489.1,0.2008]
[1751310050341,0.01,2489.2,2489.1,10.77031637]
[1751310052535,0.01,2489.2,2489.1,6.7528]
[1751310052739,0.01,2489.2,2489.1,10.77031637]
[1751310052951,0.01,2489.2,2489.1,19.35550533]
[1751310053244,0.01,2489.2,2489.1,23.01729177]
[1751310053438,0.01,2489.2,2489.1,33.01729177]
[1751310053843,0.01,2489.2,2489.1,33.42032936]
[1751310055966,0.01,2489.2,2489.1,19.6332404]
[1751310056261,0.01,2489.2,2489.1,12.77070616]
[1751310056871,0.01,2489.2,2489.1,11.57041637]
[1751310057370,0.01,2489.2,2489.1,12.77070616]
[1751310058060,0.01,2489.2,2489.1,7.97150616]
[1751310058255,0.01,2489.2,2489.1,11.98902253]
[1751310058461,0.01,2489.2,2489.1,14.75221712]
[1751310059364,0.01,2489.2,2489.1,1.40108979]
[1751310059673,0.01,2489.2,2489.1,6.7528]
[1751310060360,0.01,2489.2,2489.1,5.41860616]
[1751310060572,0.01,2489.2,2489.1,12.52060616]
[1751310061146,0.01,2489.2,2489.1,11.32031637]
[1751310061449,0.01,2489.2,2489.1,13.01664339]
[1751310061659,0.01,2489.2,2489.1,15.25173235]
[1751310061860,0.01,2489.2,2489.1,19.47004872]
[1751310062265,0.01,2489.2,2489.1,21.07533188]
[1751310062450,0.01,2489.2,2489.1,21.16083188]
[1751310062973,0.01,2489.2,2489.1,19.55554872]
[1751310064261,0.01,2489.2,2489.1,21.9572158]
[1751310065280,0.01,2489.2,2489.1,31.9572158]
[1751310066342,0.01,2489.2,2489.1,1.89712702]
[1751310066554,0.01,2489.2,2489.1,10.77031637]
[1751310066946,0.01,2489.2,2489.1,12.37499136]
[1751310067273,0.01,2489.2,2489.1,10.77031637]
[1751310067472,0.01,2489.2,2489.1,12.37534077]
[1751310068170,0.01,2489.2,2489.1,12.46084077]
[1751310068378,0.01,2489.2,2489.1,14.35084887]
[1751310070283,0.01,2489.2,2489.1,12.74582447]
[1751310073311,0.01,2489.2,2489.1,0.2008]
[1751310073474,0.01,2489.2,2489.1,6.7528]
[1751310073804,0.254586,2489.2,2489.1,4.21831637]
[1751310074107,0.254586,2489.2,2489.1,7.95773317]
[1751310074996,0.254586,2489.2,2489.1,11.97524954]
[1751310075216,0.254586,2489.2,2489.1,13.97092535]
[1751310075414,0.254586,2489.2,2489.1,12.76599218]
[1751310075615,0.254586,2489.2,2489.1,15.16765926]
[1751310075991,0.254586,2489.2,2489.1,12.76599218]
[1751310077283,0.254586,2489.2,2489.1,22.76599218]
[1751310079919,0.254586,2489.2,2489.1,25.97208569]
[1751310080081,0.254586,2489.2,2489.1,19.42008569]
[1751310080282,0.254586,2489.2,2489.1,22.76599218]
[1751310080507,0.254586,2489.2,2489.1,12.76599218]
[1751310080817,0.254586,2489.2,2489.1,8.36336038]
[1751310080983,0.254586,2489.2,2489.1,0.2008]
[1751310081191,0.254586,2489.2,2489.1,1.40506262]
[1751310081729,0.254586,2489.2,2489.1,4.21831637]
[1751310082998,0.254586,2489.2,2489.1,8.25653547]
[1751310084327,0.254586,2489.2,2489.1,6.65097509]
[1751310084624,0.01,2489.2,2489.1,6.65097509]
[1751310085754,0.01,2489.2,2489.1,8.25668705]
[1751310086926,0.01,2489.2,2489.1,6.65097509]
[1751310092149,0.01,2489.2,2489.1,2.08345872]
[1751310092449,0.01,2489.2,2489.1,10.77331637]
[1751310092646,0.01,2489.2,2489.1,6.7558]
[1751310093015,0.01,2489.2,2489.1,8.36157395]
[1751310093844,0.01,2489.2,2489.1,1.80657395]
[1751310094048,4.02735497,2489.2,2489.1,6.7538]
[1751310094249,4.9092484,2489.2,2489.1,7.95826406]
[1751310094549,0.89189343,2489.2,2489.1,6.7538]
[1751310094755,0.01,2489.2,2489.1,7.95822542]
[1751310095128,4.02735497,2489.2,2489.1,1.40522542]
[1751310095348,4.02735497,2489.2,2489.1,1.20442542]
[1751310095349,4.81735497,2489.2,2489.1,1.20442542]
[1751310095542,4.01751637,2489.1,2489.0,1.42522542]
[1751310095753,6.03872391,2489.1,2489.0,0.2208]
[1751310099432,6.03872391,2489.1,2489.0,0.02]
[1751310100973,4.82980064,2488.8,2488.7,1.20063942]
[1751310101164,4.83012355,2488.6,2488.5,1.80657395]
[1751310101478,4.83012355,2488.6,2488.5,0.2008]
[1751310104340,13.63495253,2488.6,2488.5,0.2008]
[1751310104542,4.79430802,2488.3,2488.2,0.2208]
[1751310104760,6.80330802,2488.3,2488.2,0.02]
[1751310107164,7.00410802,2488.3,2488.2,0.02]
[1751310107367,8.10638723,2488.3,2488.2,0.02]
[1751310107674,18.10638723,2488.3,2488.2,0.02]
[1751310111484,24.66138723,2488.3,2488.2,0.02]
[1751310111678,14.08757921,2488.3,2488.2,0.02]
[1751310111871,17.90558723,2488.3,2488.2,0.02]
[1751310114397,11.87777921,2488.3,2488.2,0.02]
[1751310114606,2.009,2488.4,2488.2,0.02]
[1751310114810,2.009,2488.4,2488.3,0.2008]
[1751310116792,7.92,2488.6,2488.3,0.2008]
[1751310117111,6.78834647,2489.0,2488.4,4.56856468]
[1751310117112,6.78829712,2489.0,2488.4,4.56856468]
[1751310117279,2.7706,2489.0,2488.8,0.2008]
[1751310117483,9.929,2489.1,2488.8,0.2008]
[1751310121012,2.009,2489.1,2488.8,0.2008]
[1751310123585,2.009,2489.1,2488.8,4.01789969]
[1751310123895,2.009,2489.1,2489.0,0.2008]